[Event "*** Titled Tuesday Blitz"]
[Site "Chess.com"]
[Date "2020.03.03"]
[Round "6"]
[White "Boorchess"]
[Black "Endgamegenius"]
[Result "1-0"]
[WhiteElo "2520"]
[BlackElo "2300"]
[TimeControl "180+1"]
[EndTime "10:00:49 PST"]
[Termination "Boorchess won on time"]

1. c4 {[%clk 0:02:20.7]} 1... c5 {[%clk 0:02:56.1]} 2. Nf3 {[%clk 0:02:20.4]}
2... b6 {[%clk 0:02:49.2]} 3. Nc3 {[%clk 0:02:19.1]} 3... Bb7 {[%clk 0:02:48.8]}
4. e3 {[%clk 0:02:19.1]} 4... Nf6 {[%clk 0:02:40.7]} 5. d4 {[%clk 0:02:17.6]}
5... d6 {[%clk 0:02:36.8]} 6. d5 {[%clk 0:02:15.1]} 6... g6 {[%clk 0:02:33.2]}
7. e4 {[%clk 0:02:14.9]} 7... Bg7 {[%clk 0:02:27.4]} 8. h3 {[%clk 0:02:14.9]}
8... O-O {[%clk 0:02:26]} 9. Bd3 {[%clk 0:02:14.4]} 9... a6 {[%clk 0:02:24.1]}
10. a4 {[%clk 0:02:11.3]} 10... Nbd7 {[%clk 0:02:21.7]} 11. g4 {[%clk
0:02:07.8]} 11... e6 {[%clk 0:02:19.5]} 12. O-O {[%clk 0:02:05.6]} 12... exd5
{[%clk 0:02:16]} 13. exd5 {[%clk 0:02:03.7]} 13... Re8 {[%clk 0:02:15.4]} 14.
Bf4 {[%clk 0:02:01.5]} 14... Ne5 {[%clk 0:02:05.9]} 15. Nxe5 {[%clk 0:01:44.9]}
1-0

[Event "*** Titled Tuesday Blitz"]
[Site "Chess.com"]
[Date "2020.03.03"]
[Round "6"]
[White "Leonid_Starozhilov"]
[Black "Astaneh"]
[Result "0-1"]
[WhiteElo "2705"]
[BlackElo "2594"]
[TimeControl "180+1"]
[EndTime "10:00:51 PST"]
[Termination "Astaneh won by resignation"]

1. e4 {[%clk 0:03:00.9]} 1... e5 {[%clk 0:02:59.4]} 2. Nf3 {[%clk 0:03:00.8]}
2... Nc6 {[%clk 0:02:59.5]} 3. Bb5 {[%clk 0:03:00.8]} 3... Nf6 {[%clk
0:02:58.7]} 4. d3 {[%clk 0:03:00.7]} 4... Bc5 {[%clk 0:02:58.1]} 5. Nbd2 {[%clk
0:03:00.3]} 5... d6 {[%clk 0:02:57.9]} 6. Nb3 {[%clk 0:03:00.2]} 6... Bb6 {[%clk
0:02:57.2]} 7. a4 {[%clk 0:03:00.1]} 7... a6 {[%clk 0:02:53.3]} 8. Bc4 {[%clk
0:02:48.5]} 8... h6 {[%clk 0:02:38.3]} 9. h3 {[%clk 0:02:47.7]} 9... Be6 {[%clk
0:02:38]} 10. a5 {[%clk 0:02:47.3]} 10... Ba7 {[%clk 0:02:38]} 11. Qe2 {[%clk
0:02:31.6]} 11... Qd7 {[%clk 0:02:33]} 12. Bxe6 {[%clk 0:02:25]} 12... fxe6
{[%clk 0:02:30.1]} 13. Be3 {[%clk 0:02:23.9]} 13... O-O-O {[%clk 0:02:25.7]} 14.
Bxa7 {[%clk 0:02:15.4]} 14... Nxa7 {[%clk 0:02:25.6]} 15. d4 {[%clk 0:02:16.2]}
15... exd4 {[%clk 0:02:24.9]} 16. Nfxd4 {[%clk 0:02:16.5]} 16... Nc6 {[%clk
0:02:25.5]} 17. O-O {[%clk 0:02:08.6]} 17... Kb8 {[%clk 0:02:14]} 18. Rfe1
{[%clk 0:02:00]} 18... e5 {[%clk 0:02:13.9]} 19. Nf3 {[%clk 0:01:36]} 19... g5
{[%clk 0:02:12.7]} 20. Nbd2 {[%clk 0:00:43.2]} 20... g4 {[%clk 0:02:12.2]} 21.
hxg4 {[%clk 0:00:43.7]} 21... Qxg4 {[%clk 0:02:12.6]} 22. b4 {[%clk 0:00:44.3]}
22... Rdg8 {[%clk 0:02:10.7]} 23. g3 {[%clk 0:00:44.6]} 23... Nh5 {[%clk
0:02:04]} 24. Nf1 {[%clk 0:00:18.2]} 24... Nf4 {[%clk 0:01:59.8]} 25. Qe3 {[%clk
0:00:18.7]} 25... Qh3 {[%clk 0:01:58.7]} 0-1

[Event "*** Titled Tuesday Blitz"]
[Site "Chess.com"]
[Date "2020.03.03"]
[Round "6"]
[White "artooon"]
[Black "vlad10898"]
[Result "1-0"]
[WhiteElo "2761"]
[BlackElo "2669"]
[TimeControl "180+1"]
[EndTime "10:00:55 PST"]
[Termination "artooon won by resignation"]

1. e4 {[%clk 0:03:00.9]} 1... c5 {[%clk 0:02:59.7]} 2. Nf3 {[%clk 0:03:00.2]}
2... d6 {[%clk 0:03:00.2]} 3. d4 {[%clk 0:02:59.6]} 3... cxd4 {[%clk 0:03:01.1]}
4. Nxd4 {[%clk 0:03:00.5]} 4... Nf6 {[%clk 0:03:01.3]} 5. Nc3 {[%clk 0:03:01.1]}
5... a6 {[%clk 0:03:01.9]} 6. Bg5 {[%clk 0:03:00.9]} 6... Nbd7 {[%clk
0:03:01.9]} 7. Bc4 {[%clk 0:02:59.5]} 7... Qb6 {[%clk 0:03:00.8]} 8. O-O {[%clk
0:02:57.4]} 8... Qc5 {[%clk 0:02:52.9]} 9. Bxf6 {[%clk 0:02:54]} 9... Nxf6
{[%clk 0:02:53]} 10. Bb3 {[%clk 0:02:52.1]} 10... e6 {[%clk 0:02:53.1]} 11. Kh1
{[%clk 0:02:45.8]} 11... Be7 {[%clk 0:02:53.3]} 12. f4 {[%clk 0:02:46.2]} 12...
O-O {[%clk 0:02:53.4]} 13. f5 {[%clk 0:02:46.6]} 13... e5 {[%clk 0:02:53.7]} 14.
Nf3 {[%clk 0:02:46.7]} 14... b5 {[%clk 0:02:35.1]} 15. Nd5 {[%clk 0:02:46.6]}
15... Ra7 {[%clk 0:02:35.5]} 16. Nxf6+ {[%clk 0:02:43.4]} 16... Bxf6 {[%clk
0:02:35.3]} 17. Bd5 {[%clk 0:02:44.3]} 17... Bb7 {[%clk 0:02:32.5]} 18. Bxb7
{[%clk 0:02:43.9]} 18... Rxb7 {[%clk 0:02:32.9]} 19. Qd3 {[%clk 0:02:43.2]}
19... Rd8 {[%clk 0:02:23.2]} 20. Rad1 {[%clk 0:02:42]} 20... d5 {[%clk
0:02:18.1]} 21. exd5 {[%clk 0:02:36.2]} 21... Rbd7 {[%clk 0:02:18.1]} 22. c3
{[%clk 0:02:01.3]} 22... Rxd5 {[%clk 0:02:16.7]} 23. Qe2 {[%clk 0:02:01.1]}
23... e4 {[%clk 0:01:59.1]} 24. Nd2 {[%clk 0:01:37]} 24... Re8 {[%clk
0:00:46.4]} 25. Nxe4 {[%clk 0:01:30.5]} 25... Rxd1 {[%clk 0:00:33.2]} 26. Nxf6+
{[%clk 0:01:28.5]} 1-0

[Event "*** Titled Tuesday Blitz"]
[Site "Chess.com"]
[Date "2020.03.03"]
[Round "6"]
[White "Pultis"]
[Black "Sibelephant"]
[Result "0-1"]
[WhiteElo "2781"]
[BlackElo "3053"]
[TimeControl "180+1"]
[EndTime "10:00:57 PST"]
[Termination "Sibelephant won by resignation"]

1. d4 {[%clk 0:02:58.9]} 1... Nf6 {[%clk 0:02:59.4]} 2. c4 {[%clk 0:02:56.8]}
2... g6 {[%clk 0:02:59.7]} 3. Nc3 {[%clk 0:02:55.2]} 3... d5 {[%clk 0:02:59.8]}
4. cxd5 {[%clk 0:02:54.4]} 4... Nxd5 {[%clk 0:02:59.7]} 5. e4 {[%clk 0:02:55.3]}
5... Nxc3 {[%clk 0:02:59.6]} 6. bxc3 {[%clk 0:02:56.2]} 6... Bg7 {[%clk
0:03:00.1]} 7. Bc4 {[%clk 0:02:56.8]} 7... c5 {[%clk 0:02:59.6]} 8. Ne2 {[%clk
0:02:57.1]} 8... O-O {[%clk 0:03:00.2]} 9. Be3 {[%clk 0:02:57.5]} 9... Nc6
{[%clk 0:03:00.3]} 10. O-O {[%clk 0:02:58]} 10... Bg4 {[%clk 0:02:59.5]} 11. f3
{[%clk 0:02:58.1]} 11... Bd7 {[%clk 0:03:00.1]} 12. Rb1 {[%clk 0:02:58.3]} 12...
Rc8 {[%clk 0:03:00.2]} 13. Qd2 {[%clk 0:02:35.9]} 13... Qa5 {[%clk 0:02:59.3]}
14. Rxb7 {[%clk 0:02:11.5]} 14... cxd4 {[%clk 0:02:57.7]} 15. cxd4 {[%clk
0:02:12]} 15... Qxd2 {[%clk 0:02:57.6]} 16. Bxd2 {[%clk 0:02:12.9]} 16... Nxd4
{[%clk 0:02:56.2]} 17. Rxd7 {[%clk 0:01:54]} 17... Rxc4 {[%clk 0:02:55.8]} 18.
Nxd4 {[%clk 0:00:47.3]} 18... Rxd4 {[%clk 0:02:55.6]} 19. Rxd4 {[%clk
0:00:42.8]} 19... Bxd4+ {[%clk 0:02:56.2]} 20. Kh1 {[%clk 0:00:43.7]} 20... Rb8
{[%clk 0:02:55.6]} 21. a4 {[%clk 0:00:30]} 21... Rb2 {[%clk 0:02:54.7]} 22. Rd1
{[%clk 0:00:30.3]} 22... Ra2 {[%clk 0:02:50]} 23. a5 {[%clk 0:00:30.6]} 23... e5
{[%clk 0:02:46.4]} 24. h3 {[%clk 0:00:28.7]} 24... f5 {[%clk 0:02:43.9]} 25. Kh2
{[%clk 0:00:21]} 25... Kf7 {[%clk 0:02:39]} 26. Bb4 {[%clk 0:00:15.2]} 26... Rb2
{[%clk 0:02:26.9]} 27. Be1 {[%clk 0:00:13.4]} 27... fxe4 {[%clk 0:02:25.8]} 28.
fxe4 {[%clk 0:00:14.3]} 28... Re2 {[%clk 0:02:26.2]} 29. Bg3 {[%clk 0:00:07.3]}
29... Rxe4 {[%clk 0:02:24.2]} 30. Rb1 {[%clk 0:00:07.9]} 30... h5 {[%clk
0:02:21.9]} 31. h4 {[%clk 0:00:06.4]} 31... Ke6 {[%clk 0:02:20.2]} 32. Rb7
{[%clk 0:00:04.9]} 32... Re2 {[%clk 0:02:16.9]} 33. Rg7 {[%clk 0:00:05]} 33...
Kf6 {[%clk 0:02:16.5]} 34. Rf7+ {[%clk 0:00:05.4]} 34... Kxf7 {[%clk 0:02:15.3]}
0-1

[Event "*** Titled Tuesday Blitz"]
[Site "Chess.com"]
[Date "2020.03.03"]
[Round "6"]
[White "Haykoooo0o"]
[Black "mitrabhaa"]
[Result "0-1"]
[WhiteElo "2482"]
[BlackElo "2638"]
[TimeControl "180+1"]
[EndTime "10:00:59 PST"]
[Termination "mitrabhaa won by checkmate"]

1. d4 {[%clk 0:02:59.8]} 1... Nf6 {[%clk 0:02:54.5]} 2. c4 {[%clk 0:03:00.3]}
2... c5 {[%clk 0:02:51.4]} 3. d5 {[%clk 0:03:00.3]} 3... e6 {[%clk 0:02:26.8]}
4. Nc3 {[%clk 0:02:59.7]} 4... exd5 {[%clk 0:02:26.7]} 5. cxd5 {[%clk
0:03:00.6]} 5... d6 {[%clk 0:02:26.9]} 6. e4 {[%clk 0:03:00.9]} 6... g6 {[%clk
0:02:27]} 7. f4 {[%clk 0:03:01.4]} 7... Bg7 {[%clk 0:02:27.3]} 8. e5 {[%clk
0:03:01.7]} 8... Nfd7 {[%clk 0:02:25.7]} 9. Nb5 {[%clk 0:03:01.7]} 9... O-O
{[%clk 0:02:23.5]} 10. Nxd6 {[%clk 0:03:01.2]} 10... Nxe5 {[%clk 0:02:19.3]} 11.
fxe5 {[%clk 0:03:01]} 11... Bxe5 {[%clk 0:02:19.3]} 12. Ne4 {[%clk 0:02:48.3]}
12... Qh4+ {[%clk 0:02:18]} 13. Nf2 {[%clk 0:02:48.5]} 13... Bd4 {[%clk
0:02:16]} 14. g3 {[%clk 0:02:43.6]} 14... Re8+ {[%clk 0:02:11.5]} 15. Be2 {[%clk
0:02:39.1]} 15... Qf6 {[%clk 0:02:10.4]} 16. Nd3 {[%clk 0:02:31.4]} 16... Bf5
{[%clk 0:02:04.7]} 17. Bf4 {[%clk 0:02:23.8]} 17... Be4 {[%clk 0:01:59.3]} 18.
Qd2 {[%clk 0:02:12.3]} 18... Bxh1 {[%clk 0:01:56.7]} 19. O-O-O {[%clk
0:02:12.9]} 19... Bxd5 {[%clk 0:01:52.8]} 20. Nf3 {[%clk 0:02:10.9]} 20... Nc6
{[%clk 0:01:51.7]} 21. Nxd4 {[%clk 0:02:07.9]} 21... Nxd4 {[%clk 0:01:51.7]} 22.
Bf1 {[%clk 0:02:01.6]} 22... Bxa2 {[%clk 0:01:50.6]} 23. Qf2 {[%clk 0:01:24.2]}
23... Nb3+ {[%clk 0:01:49.3]} 24. Kc2 {[%clk 0:01:24.2]} 24... c4 {[%clk
0:01:47]} 25. Nb4 {[%clk 0:01:19.6]} 25... Qf5+ {[%clk 0:01:46.7]} 26. Kc3
{[%clk 0:01:19.9]} 26... Qf6+ {[%clk 0:01:33.4]} 27. Kc2 {[%clk 0:01:17.8]}
27... Na1+ {[%clk 0:01:19.4]} 28. Rxa1 {[%clk 0:01:10.2]} 28... Bb3+ {[%clk
0:01:19.4]} 29. Kd2 {[%clk 0:01:08.2]} 29... Rad8+ {[%clk 0:01:19]} 30. Nd3
{[%clk 0:00:53.6]} 30... Qxb2# {[%clk 0:01:17.9]} 0-1

[Event "*** Titled Tuesday Blitz"]
[Site "Chess.com"]
[Date "2020.03.03"]
[Round "6"]
[White "ZWISCHENZUGGED"]
[Black "NemtsevIgor"]
[Result "1-0"]
[WhiteElo "2545"]
[BlackElo "2350"]
[TimeControl "180+1"]
[EndTime "10:01:18 PST"]
[Termination "ZWISCHENZUGGED won by resignation"]

1. d4 {[%clk 0:03:00.9]} 1... c6 {[%clk 0:02:58.8]} 2. c4 {[%clk 0:03:00.6]}
2... d6 {[%clk 0:02:58.9]} 3. Nc3 {[%clk 0:02:59.6]} 3... h6 {[%clk 0:02:57.8]}
4. Nf3 {[%clk 0:02:59]} 4... g5 {[%clk 0:02:57.6]} 5. e4 {[%clk 0:02:53.3]} 5...
Bg7 {[%clk 0:02:56.9]} 6. Be3 {[%clk 0:02:51]} 6... Nf6 {[%clk 0:02:55.1]} 7. h4
{[%clk 0:02:50.2]} 7... Ng4 {[%clk 0:02:54]} 8. hxg5 {[%clk 0:02:43.1]} 8...
Nxe3 {[%clk 0:02:53.1]} 9. fxe3 {[%clk 0:02:44]} 9... hxg5 {[%clk 0:02:49.6]}
10. Rxh8+ {[%clk 0:02:42.5]} 10... Bxh8 {[%clk 0:02:49.8]} 11. Nxg5 {[%clk
0:02:43.2]} 11... e5 {[%clk 0:01:56.1]} 12. Qh5 {[%clk 0:02:37.4]} 12... Qf6
{[%clk 0:01:53.3]} 13. Nxf7 {[%clk 0:02:27]} 13... Qxf7 {[%clk 0:01:49.2]} 14.
Qxh8+ {[%clk 0:02:27.1]} 14... Qf8 {[%clk 0:01:38.7]} 15. Qh2 {[%clk 0:02:12.1]}
15... Bg4 {[%clk 0:01:23.3]} 16. dxe5 {[%clk 0:02:01.1]} 16... dxe5 {[%clk
0:01:23.4]} 17. Qxe5+ {[%clk 0:02:01.2]} 17... Qe7 {[%clk 0:01:08]} 18. Qh8+
{[%clk 0:01:58.5]} 18... Qf8 {[%clk 0:01:01.8]} 19. Qh4 {[%clk 0:01:49.2]} 19...
Qg7 {[%clk 0:00:55.3]} 20. Be2 {[%clk 0:01:34.9]} 20... Bxe2 {[%clk 0:00:54.6]}
21. Nxe2 {[%clk 0:01:35.7]} 21... Nd7 {[%clk 0:00:54.6]} 22. O-O-O {[%clk
0:01:28.9]} 22... Ne5 {[%clk 0:00:28.9]} 23. Qh5+ {[%clk 0:01:27.2]} 23... Ke7
{[%clk 0:00:20.5]} 24. Nd4 {[%clk 0:01:16.9]} 24... Qg3 {[%clk 0:00:12.7]} 25.
Nf5+ {[%clk 0:01:17.8]} 1-0

[Event "*** Titled Tuesday Blitz"]
[Site "Chess.com"]
[Date "2020.03.03"]
[Round "6"]
[White "FearNoEvil12"]
[Black "Resignify"]
[Result "1-0"]
[WhiteElo "1979"]
[BlackElo "2244"]
[TimeControl "180+1"]
[EndTime "10:01:18 PST"]
[Termination "FearNoEvil12 won on time"]

1. e4 {[%clk 0:03:00.9]} 1... d6 {[%clk 0:02:59.6]} 2. Nc3 {[%clk 0:02:59.5]}
2... Nf6 {[%clk 0:02:59.4]} 3. f4 {[%clk 0:02:59.9]} 3... c5 {[%clk 0:02:57.9]}
4. Nf3 {[%clk 0:03:00]} 4... Nc6 {[%clk 0:02:55.7]} 5. Bc4 {[%clk 0:03:00.1]}
5... e6 {[%clk 0:02:47.8]} 6. d3 {[%clk 0:02:59]} 6... d5 {[%clk 0:02:42.5]} 7.
Bb5 {[%clk 0:02:58.1]} 7... Be7 {[%clk 0:02:27.1]} 8. Qe2 {[%clk 0:02:55.7]}
8... O-O {[%clk 0:02:18.4]} 9. Bxc6 {[%clk 0:02:52.3]} 9... bxc6 {[%clk
0:02:17.8]} 10. O-O {[%clk 0:02:52.4]} 10... Ba6 {[%clk 0:01:36.3]} 11. e5
{[%clk 0:02:50.6]} 11... Nd7 {[%clk 0:01:32.5]} 12. Bd2 {[%clk 0:02:41.7]} 12...
c4 {[%clk 0:01:27.6]} 13. d4 {[%clk 0:02:40.8]} 13... c5 {[%clk 0:01:27.7]} 14.
Be3 {[%clk 0:02:40.4]} 14... cxd4 {[%clk 0:01:26.1]} 15. Nxd4 {[%clk 0:02:36.3]}
15... Nc5 {[%clk 0:01:12.6]} 16. Rae1 {[%clk 0:02:31.7]} 16... Qc7 {[%clk
0:01:06.5]} 17. Qg4 {[%clk 0:02:22.4]} 17... g6 {[%clk 0:00:58.8]} 18. Rf3
{[%clk 0:02:20]} 18... h5 {[%clk 0:00:44]} 19. Qg3 {[%clk 0:02:15.2]} 19... Kh7
{[%clk 0:00:31.8]} 20. f5 {[%clk 0:01:59.3]} 20... gxf5 {[%clk 0:00:20.8]} 21.
Qf4 {[%clk 0:01:57]} 21... h4 {[%clk 0:00:10.8]} 22. Qh6+ {[%clk 0:01:53.9]}
22... Kg8 {[%clk 0:00:11.1]} 23. Bf4 {[%clk 0:01:40.5]} 23... Rfc8 {[%clk
0:00:09.2]} 24. Ree3 {[%clk 0:01:31.6]} 24... Ne4 {[%clk 0:00:08]} 25. Nxe4
{[%clk 0:01:28.7]} 25... dxe4 {[%clk 0:00:07.9]} 26. Rg3+ {[%clk 0:01:28.6]}
26... hxg3 {[%clk 0:00:05.5]} 27. Rxg3+ {[%clk 0:01:28.2]} 1-0

[Event "*** Titled Tuesday Blitz"]
[Site "Chess.com"]
[Date "2020.03.03"]
[Round "6"]
[White "ckgchess"]
[Black "AleksanderHnydiuk"]
[Result "1-0"]
[WhiteElo "2696"]
[BlackElo "2556"]
[TimeControl "180+1"]
[EndTime "10:01:23 PST"]
[Termination "ckgchess won by resignation"]

1. e4 {[%clk 0:03:00.9]} 1... Nf6 {[%clk 0:02:59.6]} 2. e5 {[%clk 0:03:01.1]}
2... Nd5 {[%clk 0:02:59.9]} 3. d4 {[%clk 0:03:02]} 3... d6 {[%clk 0:03:00.3]} 4.
c4 {[%clk 0:03:01.8]} 4... Nb6 {[%clk 0:03:00.1]} 5. f4 {[%clk 0:03:02.5]} 5...
dxe5 {[%clk 0:02:57.4]} 6. fxe5 {[%clk 0:03:03.4]} 6... Nc6 {[%clk 0:02:57.8]}
7. Be3 {[%clk 0:03:02.8]} 7... Bf5 {[%clk 0:02:57.6]} 8. Nc3 {[%clk 0:03:03.2]}
8... e6 {[%clk 0:02:57.8]} 9. Nf3 {[%clk 0:02:59.5]} 9... Be7 {[%clk 0:02:57.9]}
10. Bd3 {[%clk 0:02:58.1]} 10... Bg4 {[%clk 0:02:46.6]} 11. h3 {[%clk 0:02:32]}
11... Bxf3 {[%clk 0:02:41]} 12. Qxf3 {[%clk 0:02:32.9]} 12... Nxd4 {[%clk
0:02:36.3]} 13. Qxb7 {[%clk 0:02:30.3]} 13... Nf3+ {[%clk 0:02:06.5]} 14. Qxf3
{[%clk 0:02:21.8]} 14... Qxd3 {[%clk 0:02:05.6]} 15. Rd1 {[%clk 0:02:18.3]}
15... Qxc4 {[%clk 0:01:47.7]} 16. Bxb6 {[%clk 0:02:12.1]} 16... O-O {[%clk
0:01:32.1]} 17. Bf2 {[%clk 0:01:57.8]} 17... Rad8 {[%clk 0:01:11.7]} 18. Rxd8
{[%clk 0:01:57.2]} 18... Rxd8 {[%clk 0:01:10.7]} 19. Qe2 {[%clk 0:01:57.8]}
19... Qf4 {[%clk 0:01:00.9]} 20. O-O {[%clk 0:01:55.6]} 20... Rd2 {[%clk
0:01:00.2]} 21. Qe3 {[%clk 0:01:50.1]} 21... Qxe3 {[%clk 0:00:55.5]} 22. Bxe3
{[%clk 0:01:51]} 22... Rxb2 {[%clk 0:00:55.6]} 23. Rb1 {[%clk 0:01:50.6]} 23...
Rxb1+ {[%clk 0:00:51.2]} 24. Nxb1 {[%clk 0:01:51.5]} 24... a6 {[%clk 0:00:51.7]}
25. Kf2 {[%clk 0:01:49.9]} 25... Kf8 {[%clk 0:00:46.7]} 26. Kf3 {[%clk
0:01:50.1]} 26... Ke8 {[%clk 0:00:46.2]} 27. Nc3 {[%clk 0:01:50.5]} 27... Kd7
{[%clk 0:00:46.1]} 28. Ke4 {[%clk 0:01:50.6]} 28... Kc6 {[%clk 0:00:40.2]} 29.
Kd3 {[%clk 0:01:49.7]} 29... Bh4 {[%clk 0:00:28.8]} 30. Kc4 {[%clk 0:01:48.6]}
30... Bg3 {[%clk 0:00:28.4]} 31. Bd4 {[%clk 0:01:48.8]} 31... Bf4 {[%clk
0:00:28]} 32. a4 {[%clk 0:01:48.5]} 32... Bg3 {[%clk 0:00:27.2]} 33. Ne4 {[%clk
0:01:48.3]} 33... Bf4 {[%clk 0:00:26.8]} 34. Nc5 {[%clk 0:01:48.8]} 34... a5
{[%clk 0:00:18.8]} 35. Nb3 {[%clk 0:01:48.9]} 1-0

[Event "*** Titled Tuesday Blitz"]
[Site "Chess.com"]
[Date "2020.03.03"]
[Round "6"]
[White "MishkaFighter"]
[Black "Berardino"]
[Result "1-0"]
[WhiteElo "2525"]
[BlackElo "2632"]
[TimeControl "180+1"]
[EndTime "10:01:29 PST"]
[Termination "MishkaFighter won by resignation"]

1. Nf3 {[%clk 0:03:00.9]} 1... c5 {[%clk 0:02:59.6]} 2. g3 {[%clk 0:02:59.7]}
2... b6 {[%clk 0:02:59.3]} 3. Bg2 {[%clk 0:02:59.4]} 3... Bb7 {[%clk 0:03:00.2]}
4. O-O {[%clk 0:03:00.3]} 4... e6 {[%clk 0:03:00.3]} 5. c4 {[%clk 0:03:00.4]}
5... Nc6 {[%clk 0:02:56]} 6. b3 {[%clk 0:03:00.3]} 6... Nf6 {[%clk 0:02:53.9]}
7. Bb2 {[%clk 0:02:59.7]} 7... Be7 {[%clk 0:02:53.9]} 8. e3 {[%clk 0:03:00.1]}
8... O-O {[%clk 0:02:52.9]} 9. Qe2 {[%clk 0:03:00.4]} 9... d5 {[%clk 0:02:52]}
10. Rd1 {[%clk 0:02:56.7]} 10... dxc4 {[%clk 0:02:50.9]} 11. bxc4 {[%clk
0:02:56.4]} 11... Qc7 {[%clk 0:02:51.1]} 12. Nc3 {[%clk 0:02:55.2]} 12... a6
{[%clk 0:02:50.4]} 13. Rac1 {[%clk 0:02:55.4]} 13... Rad8 {[%clk 0:02:48.5]} 14.
d4 {[%clk 0:02:55.6]} 14... cxd4 {[%clk 0:02:47.5]} 15. exd4 {[%clk 0:02:56.5]}
15... Na5 {[%clk 0:02:45.3]} 16. Nb1 {[%clk 0:02:31.8]} 16... Rc8 {[%clk
0:02:16]} 17. Nbd2 {[%clk 0:02:30.1]} 17... Rfd8 {[%clk 0:02:13.8]} 18. Re1
{[%clk 0:02:27.3]} 18... Bb4 {[%clk 0:02:08]} 19. d5 {[%clk 0:02:24.7]} 19...
Qe7 {[%clk 0:01:41.8]} 20. a3 {[%clk 0:02:07.6]} 20... Bxd2 {[%clk 0:01:09.6]}
21. Nxd2 {[%clk 0:02:08.5]} 21... Ne8 {[%clk 0:00:59.5]} 22. Bc3 {[%clk
0:01:55.5]} 22... Qxa3 {[%clk 0:00:54.5]} 23. dxe6 {[%clk 0:01:53.9]} 23... Bxg2
{[%clk 0:00:48.5]} 24. exf7+ {[%clk 0:01:52.6]} 24... Kxf7 {[%clk 0:00:49]} 25.
Qe6+ {[%clk 0:01:51.3]} 25... Kf8 {[%clk 0:00:49.2]} 26. Kxg2 {[%clk 0:01:42.7]}
26... Nc6 {[%clk 0:00:42.6]} 27. Re3 {[%clk 0:01:37.8]} 27... Qxc1 {[%clk
0:00:20.1]} 28. Rf3+ {[%clk 0:01:36.5]} 28... Nf6 {[%clk 0:00:20]} 29. Bxf6
{[%clk 0:01:37.1]} 29... gxf6 {[%clk 0:00:19.8]} 30. Rxf6+ {[%clk 0:01:38]}
30... Kg7 {[%clk 0:00:16.5]} 31. Rf7+ {[%clk 0:01:38.9]} 31... Kg8 {[%clk
0:00:14.1]} 32. Re7+ {[%clk 0:01:38.9]} 1-0

[Event "*** Titled Tuesday Blitz"]
[Site "Chess.com"]
[Date "2020.03.03"]
[Round "6"]
[White "ChelsieMonica"]
[Black "Peroncio"]
[Result "0-1"]
[WhiteElo "2148"]
[BlackElo "2647"]
[TimeControl "180+1"]
[EndTime "10:01:31 PST"]
[Termination "Peroncio won on time"]

1. c4 {[%clk 0:03:00.9]} 1... c5 {[%clk 0:02:59.1]} 2. Nf3 {[%clk 0:02:59.1]}
2... Nc6 {[%clk 0:02:59.5]} 3. e3 {[%clk 0:02:50.2]} 3... Nf6 {[%clk 0:02:46.7]}
4. Be2 {[%clk 0:02:46.2]} 4... e6 {[%clk 0:02:32.1]} 5. O-O {[%clk 0:02:31.6]}
5... Be7 {[%clk 0:02:32]} 6. d4 {[%clk 0:02:30.6]} 6... cxd4 {[%clk 0:02:32]} 7.
exd4 {[%clk 0:02:29.5]} 7... d5 {[%clk 0:02:32.4]} 8. Nc3 {[%clk 0:02:27.9]}
8... O-O {[%clk 0:02:32.1]} 9. h3 {[%clk 0:02:02.9]} 9... dxc4 {[%clk
0:02:21.8]} 10. Bxc4 {[%clk 0:02:00.9]} 10... a6 {[%clk 0:02:20.9]} 11. Bb3
{[%clk 0:01:40]} 11... Na5 {[%clk 0:02:15.4]} 12. Bc2 {[%clk 0:01:33.4]} 12...
b5 {[%clk 0:02:15.9]} 13. Qe2 {[%clk 0:01:21.1]} 13... Bb7 {[%clk 0:02:13.5]}
14. Rd1 {[%clk 0:01:19.3]} 14... Rc8 {[%clk 0:02:09.4]} 15. a3 {[%clk
0:01:15.4]} 15... Nc4 {[%clk 0:02:03.8]} 16. Ne5 {[%clk 0:01:08.6]} 16... Nb6
{[%clk 0:02:04]} 17. Bg5 {[%clk 0:01:07.1]} 17... Nbd5 {[%clk 0:02:02.1]} 18.
Nxd5 {[%clk 0:01:04.5]} 18... Nxd5 {[%clk 0:01:54.5]} 19. Bxe7 {[%clk
0:01:02.1]} 19... Qxe7 {[%clk 0:01:55.4]} 20. Rac1 {[%clk 0:01:02.4]} 20... Qg5
{[%clk 0:01:42.8]} 21. Qg4 {[%clk 0:00:49.9]} 21... Qxg4 {[%clk 0:01:40.9]} 22.
hxg4 {[%clk 0:00:42.6]} 22... Nf4 {[%clk 0:01:41.2]} 23. Rd2 {[%clk 0:00:31.3]}
23... Bxg2 {[%clk 0:01:33.3]} 24. Re1 {[%clk 0:00:23.2]} 24... Bd5 {[%clk
0:01:31.8]} 25. Be4 {[%clk 0:00:21.1]} 25... Rfd8 {[%clk 0:01:30.3]} 26. Bxd5
{[%clk 0:00:20.8]} 26... Rxd5 {[%clk 0:01:31.1]} 0-1

[Event "*** Titled Tuesday Blitz"]
[Site "Chess.com"]
[Date "2020.03.03"]
[Round "6"]
[White "SubrotaBiswas"]
[Black "DonPreuss"]
[Result "1-0"]
[WhiteElo "2466"]
[BlackElo "2169"]
[TimeControl "180+1"]
[EndTime "10:01:35 PST"]
[Termination "SubrotaBiswas won by checkmate"]

1. e4 {[%clk 0:02:59.5]} 1... e5 {[%clk 0:02:54.6]} 2. Nf3 {[%clk 0:02:56.5]}
2... d5 {[%clk 0:02:55]} 3. Nxe5 {[%clk 0:02:55.1]} 3... Bd6 {[%clk 0:02:54.4]}
4. d4 {[%clk 0:02:54.9]} 4... dxe4 {[%clk 0:02:54.6]} 5. Nc4 {[%clk 0:02:54.6]}
5... Ne7 {[%clk 0:02:54]} 6. Nc3 {[%clk 0:02:54.3]} 6... f5 {[%clk 0:02:53.6]}
7. Nxd6+ {[%clk 0:02:49.2]} 7... cxd6 {[%clk 0:02:53.3]} 8. Qh5+ {[%clk
0:02:47.8]} 8... Ng6 {[%clk 0:02:49.3]} 9. Bb5+ {[%clk 0:02:44.2]} 9... Bd7
{[%clk 0:02:47.7]} 10. Qxf5 {[%clk 0:02:44.1]} 10... Bxb5 {[%clk 0:02:36.4]} 11.
Qxb5+ {[%clk 0:02:38.3]} 11... Qd7 {[%clk 0:02:36.4]} 12. Nxe4 {[%clk
0:02:38.2]} 12... O-O {[%clk 0:02:13.1]} 13. Qxd7 {[%clk 0:02:36]} 13... Nxd7
{[%clk 0:02:12.1]} 14. Nxd6 {[%clk 0:02:36.9]} 14... Nf4 {[%clk 0:02:03.8]} 15.
O-O {[%clk 0:02:29.1]} 15... Ne2+ {[%clk 0:02:01.7]} 16. Kh1 {[%clk 0:02:29.1]}
16... Nxd4 {[%clk 0:02:01.1]} 17. c3 {[%clk 0:02:28.9]} 17... Ne6 {[%clk
0:01:23.5]} 18. Nxb7 {[%clk 0:02:27.1]} 18... Rf6 {[%clk 0:01:12.2]} 19. Be3
{[%clk 0:02:22.2]} 19... Ne5 {[%clk 0:01:05.9]} 20. Nc5 {[%clk 0:02:16]} 20...
Nxc5 {[%clk 0:01:01.7]} 21. Bxc5 {[%clk 0:02:16.5]} 21... Nd3 {[%clk 0:00:56]}
22. Bd4 {[%clk 0:02:08.8]} 22... Re6 {[%clk 0:00:56]} 23. b3 {[%clk 0:02:05.1]}
23... Re2 {[%clk 0:00:55.3]} 24. Rad1 {[%clk 0:02:03.5]} 24... Nb2 {[%clk
0:00:51.6]} 25. Rde1 {[%clk 0:02:00.8]} 25... Rc2 {[%clk 0:00:48.4]} 26. Re7
{[%clk 0:01:58.7]} 26... a5 {[%clk 0:00:36.6]} 27. Rxg7+ {[%clk 0:01:56.5]}
27... Kf8 {[%clk 0:00:37]} 28. Rxh7 {[%clk 0:01:56]} 28... Ra6 {[%clk
0:00:37.6]} 29. f4 {[%clk 0:01:54.2]} 29... a4 {[%clk 0:00:37.8]} 30. f5 {[%clk
0:01:53.7]} 30... a3 {[%clk 0:00:33.2]} 31. f6 {[%clk 0:01:52.2]} 31... Nd3
{[%clk 0:00:31.2]} 32. f7 {[%clk 0:01:50.9]} 32... Nf2+ {[%clk 0:00:26.7]} 33.
Bxf2 {[%clk 0:01:47.5]} 33... Rf6 {[%clk 0:00:17.6]} 34. Bc5+ {[%clk 0:01:43.3]}
34... Rd6 {[%clk 0:00:16.3]} 35. Bxd6# {[%clk 0:01:43.3]} 1-0